fUST/lending_fUST_20250814
["ID","MTS","AMOUNT","RATE_DAILY","PERIOD"]
[379166744,1755173440995,-460.0,0.0001671,2]
[379166745,1755173441004,-817.35,0.0001671,2]
[379166746,1755173441014,-593.56,0.0001671,2]
[379166747,1755173441023,-460.0,0.0001671,2]
[379166748,1755173441032,-460.0,0.0001671,2]
[379166749,1755173441042,-460.0,0.0001671,2]
[379166750,1755173441051,-460.0,0.0001671,2]
[379166751,1755173441061,-467.61506618,0.0001671,2]
[379166752,1755173441071,-460.0,0.0001671,2]
[379166753,1755173441081,-475.31106279,0.0001671,2]
[379166754,1755173441090,-460.0,0.0001671,2]
[379166755,1755173441100,-603.67,0.0001671,2]
[379166756,1755173441110,-460.0,0.0001671,2]
[379166757,1755173441120,-460.0,0.0001671,2]
[379166758,1755173441129,-460.0,0.0001671,2]
[379166759,1755173441138,-460.0,0.0001671,2]
[379166760,1755173441148,-460.0,0.0001671,2]
[379166761,1755173441158,-1106.36,0.0001671,2]
[379166762,1755173441167,-470.7558054,0.0001671,2]
[379166763,1755173441176,-460.0,0.0001671,2]
[379166764,1755173441186,-460.0,0.0001671,2]
[379166765,1755173441195,-505.76,0.0001671,2]
[379166766,1755173441204,-460.0,0.0001671,2]
[379166767,1755173441213,-460.0,0.0001671,2]
[379166768,1755173441223,-460.0,0.0001671,2]
[379166769,1755173441234,-460.0,0.0001671,2]
[379166770,1755173441244,-460.0,0.0001671,2]
[379166771,1755173441253,-460.0,0.0001671,2]
[379166772,1755173441263,-604.8,0.00016711,2]
[379166773,1755173441273,-460.0,0.00016711,2]
[379166774,1755173441282,-460.0,0.00016711,2]
[379166775,1755173441291,-460.0,0.00016711,2]
[379166776,1755173441300,-925.37,0.00016711,2]
[379166777,1755173441311,-460.0,0.00016711,2]
[379166778,1755173441320,-197.5343251,0.00016711,2]
[379166779,1755173441329,-460.0,0.00016711,2]
[379166780,1755173441339,-460.0,0.00016711,2]
[379166781,1755173441350,-460.0,0.00016711,2]
[379166782,1755173441359,-460.0,0.00016711,2]
[379166783,1755173441368,-494.3600084,0.00016711,2]
[379166784,1755173441378,-397.98481242,0.00016711,2]
[379166785,1755173441387,-527.71,0.00016711,2]
[379166786,1755173441395,-735.89,0.00016711,2]
[379166787,1755173441405,-151.0,0.00016711,2]
[379166788,1755173441414,-877.68,0.00016711,2]
[379166789,1755173441424,-460.0,0.00016711,2]
[379166790,1755173441433,-989.91,0.00016711,2]
[379166791,1755173441443,-460.0,0.00016711,2]
[379166792,1755173441452,-151.0,0.00016711,2]
[379166793,1755173441461,-397.726348,0.00016711,2]
[379166794,1755173441470,-151.0,0.00016711,2]
[379166795,1755173441479,-397.726348,0.00016711,2]
[379166796,1755173441488,-748.46,0.00016711,2]
[379166797,1755173441499,-352.85184165,0.00016711,2]
[379166798,1755173441510,-460.0,0.00016711,2]
[379166799,1755173441519,-460.0,0.00016711,2]
[379166800,1755173441528,-513.28599369,0.00016711,2]
[379166801,1755173441538,-164.716142,0.00016711,2]
[379166802,1755173441548,-460.0,0.00016711,2]
[379166803,1755173441557,-460.0,0.00016711,2]
[379166804,1755173441567,-473.41514246,0.00016711,2]
[379166805,1755173441577,-460.0,0.00016711,2]
[379166806,1755173441587,-2336.34,0.00016711,2]
[379166807,1755173441598,-460.0,0.00016711,2]
[379166808,1755173441607,-460.0,0.00016711,2]
[379166809,1755173441616,-460.0,0.00016711,2]
[379166810,1755173441626,-460.0,0.00016711,2]
[379166811,1755173441636,-643.87,0.00016711,2]
[379166812,1755173441646,-460.0,0.00016711,2]
[379166813,1755173441655,-460.0,0.00016711,2]
[379166814,1755173441666,-575.26413,0.00016711,2]
[379166815,1755173441675,-575.26413,0.00016711,2]
[379166816,1755173441685,-1842.329479,0.00016711,2]
[379166817,1755173441695,-1842.329479,0.00016711,2]
[379166818,1755173441704,-498.32,0.00016711,2]
[379166819,1755173441714,-508.779493,0.00016711,2]
[379166820,1755173441723,-460.0,0.00016711,2]
[379166821,1755173441733,-508.779493,0.00016711,2]
[379166822,1755173441743,-165.102386,0.00016712,2]
[379166823,1755173441752,-165.102386,0.00016712,2]
[379166824,1755173441762,-165.102386,0.00016712,2]
[379166825,1755173441771,-165.102386,0.00016712,2]
[379166826,1755173441781,-165.102386,0.00016712,2]
[379166827,1755173441790,-165.102386,0.00016712,2]
[379166828,1755173441800,-151.0,0.00016712,2]
[379166829,1755173441809,-151.0,0.00016712,2]
[379166830,1755173441818,-151.0,0.00016712,2]
[379166831,1755173441828,-151.0,0.00016712,2]
[379166832,1755173441837,-151.0,0.00016712,2]
[379166833,1755173441848,-151.0,0.00016712,2]
[379166834,1755173441857,-151.0,0.00016712,2]
[379166835,1755173441867,-251.637682,0.00016712,2]
[379166836,1755173441876,-251.637682,0.00016712,2]
[379166837,1755173441885,-251.637682,0.00016712,2]
[379166838,1755173441894,-251.637682,0.00016712,2]
[379166839,1755173441904,-251.637682,0.00016712,2]
[379166840,1755173441913,-251.637682,0.00016712,2]
[379166841,1755173441922,-251.637682,0.00016712,2]
[379166842,1755173441932,-251.637682,0.00016712,2]
[379166843,1755173441941,-151.0,0.00016712,2]
[379166844,1755173441950,-1247.561301,0.00016712,2]
[379166845,1755173441959,-1247.561301,0.00016712,2]
[379166846,1755173441969,-1247.561301,0.00016712,2]
[379166847,1755173441978,-1247.561301,0.00016712,2]
[379166848,1755173441988,-1247.561301,0.00016712,2]
[379166849,1755173441998,-1247.561301,0.00016712,2]
[379166850,1755173442008,-1247.561301,0.00016712,2]
[379166851,1755173442017,-1247.561301,0.00016712,2]
[379166852,1755173442026,-151.0,0.00016712,2]
[379166853,1755173442036,-151.0,0.00016712,2]
[379166854,1755173442047,-151.0,0.00016712,2]
[379166855,1755173442057,-151.0,0.00016712,2]
[379166856,1755173442068,-151.0,0.00016712,2]
[379166857,1755173442078,-151.0,0.00016712,2]
[379166858,1755173442088,-151.0,0.00016712,2]
[379166859,1755173442101,-234.929108,0.00016712,2]
[379166860,1755173442262,-537.651077,0.00016712,2]
[379166861,1755173442272,-151.0,0.00016712,2]
[379166862,1755173442282,-460.0,0.00016712,2]
[379166863,1755173442291,-460.0,0.00016712,2]
[379166864,1755173442301,-460.0,0.00016712,2]
[379166865,1755173442311,-230.38591391,0.00016712,2]
[379166866,1755173442320,-460.0,0.00016712,2]
[379166867,1755173442329,-460.0,0.00016712,2]
[379166868,1755173442339,-319.19139622,0.00016712,2]
[379166869,1755173442353,-460.0,0.00016712,2]
[379166870,1755173442363,-460.0,0.00016712,2]
[379166871,1755173442372,-787.42,0.00016712,2]
[379166872,1755173442382,-460.0,0.00016712,2]
[379166873,1755173442393,-460.0,0.00016712,2]
[379166874,1755173442403,-322.266009,0.00016712,2]
[379166875,1755173442412,-322.266009,0.00016712,2]
[379166876,1755173442421,-151.0,0.00016712,2]
[379166877,1755173442430,-460.0,0.00016712,2]
[379166878,1755173442440,-460.0,0.00016712,2]
[379166879,1755173442449,-263.40394147,0.00016712,2]
[379166880,1755173442459,-460.0,0.00016712,2]
[379166881,1755173442468,-151.0,0.00016712,2]
[379166882,1755173442477,-460.0,0.00016712,2]
[379166883,1755173442487,-460.0,0.00016712,2]
[379166884,1755173442496,-463.66198058,0.00016712,2]
[379166886,1755173442508,-506.97043766,0.00016712,2]
[379166888,1755173442518,-460.0,0.00016712,2]
[379166889,1755173442527,-460.0,0.00016712,2]
[379166891,1755173442536,-757.61,0.00016712,2]
[379166893,1755173442546,-500.0,0.00016712,2]
[379166895,1755173442555,-460.0,0.00016712,2]
[379166897,1755173442565,-460.0,0.00016712,2]
[379166899,1755173442574,-460.0,0.00016712,2]
[379166900,1755173442584,-151.0,0.00016712,2]
[379166901,1755173442597,-189.258874,0.00016712,2]
[379166902,1755173442606,-460.0,0.00016712,2]
[379166903,1755173442616,-460.0,0.00016712,2]
[379166904,1755173442625,-463.30837387,0.00016712,2]
[379166905,1755173442634,-460.55,0.00016712,2]
[379166906,1755173442644,-802.1,0.00016712,2]
[379166907,1755173442653,-549.74499551,0.00016712,2]
[379166908,1755173442663,-460.0,0.00016712,2]
[379166909,1755173442672,-460.0,0.00016712,2]
[379166910,1755173442681,-897.55,0.00016712,2]
[379166911,1755173442691,-248.725004,0.00016712,2]
[379166912,1755173442700,-248.725004,0.00016712,2]
[379166913,1755173442709,-460.0,0.00016712,2]
[379166914,1755173442718,-460.0,0.00016712,2]
[379166915,1755173442728,-157.092714,0.00016712,2]
[379166916,1755173442738,-550.557668,0.00016712,2]
[379166917,1755173442748,-157.092714,0.00016712,2]
[379166918,1755173442756,-550.557668,0.00016712,2]
[379166919,1755173442765,-159.074645,0.00016712,2]
[379166920,1755173442774,-460.0,0.00016712,2]
[379166921,1755173442784,-524.93878312,0.00016712,2]
[379166922,1755173442792,-478.87390918,0.00016712,2]
[379166923,1755173442802,-460.0,0.00016712,2]
[379166924,1755173442810,-460.0,0.00016712,2]
[379166925,1755173442819,-460.0,0.00016712,2]
[379166926,1755173442828,-151.0,0.00016712,2]
[379166927,1755173442838,-151.0,0.00016712,2]
[379166928,1755173442849,-460.0,0.00016712,2]
[379166929,1755173442858,-460.0,0.00016712,2]
[379166930,1755173442866,-460.0,0.00016712,2]
[379166931,1755173442876,-468.47,0.00016712,2]
[379166933,1755173442885,-460.0,0.00016712,2]
[379166935,1755173442894,-460.0,0.00016712,2]
[379166937,1755173442903,-1214.82,0.00016712,2]
[379166939,1755173442912,-460.0,0.00016712,2]
[379166940,1755173442921,-460.0,0.00016712,2]
[379166942,1755173442931,-1695.65,0.00016712,2]
[379166945,1755173442940,-1223.69,0.00016712,2]
[379166946,1755173442949,-593.37,0.00016712,2]
[379166948,1755173442959,-1405.33,0.00016712,2]
[379166950,1755173442968,-460.0,0.00016712,2]
[379166952,1755173442977,-618.79,0.00016712,2]
[379166954,1755173442987,-460.0,0.00016712,2]
[379166956,1755173442996,-460.0,0.00016712,2]
[379166958,1755173443006,-151.231728,0.00016712,2]
[379166960,1755173443016,-568.26,0.00016712,2]
[379166963,1755173443026,-151.0,0.00016712,2]
[379166964,1755173443036,-460.0,0.00016712,2]
[379166966,1755173443045,-460.0,0.00016712,2]
[379166968,1755173443055,-460.0,0.00016712,2]
[379166970,1755173443065,-460.0,0.00016712,2]
[379166973,1755173443075,-460.0,0.00016712,2]
[379166975,1755173443085,-579.703095,0.00016712,2]
[379166977,1755173443096,-460.0,0.00016712,2]
[379166979,1755173443105,-579.703095,0.00016712,2]
[379166981,1755173443114,-555.39,0.00016712,2]
[379166983,1755173443123,-151.0,0.00016712,2]
[379166985,1755173443132,-151.0,0.00016712,2]
[379166987,1755173443141,-397.726348,0.00016712,2]
[379166988,1755173443150,-774.42,0.00016712,2]
[379166990,1755173443159,-167.0032,0.00016712,2]
[379166992,1755173443168,-2535.14,0.00016712,2]
[379166994,1755173443178,-397.726348,0.00016712,2]
[379166995,1755173443188,-500.0,0.00016712,2]
[379166996,1755173443197,-151.0,0.00016712,2]
[379166997,1755173443206,-151.0,0.00016712,2]
[379166998,1755173443215,-460.0,0.00016712,2]
[379167000,1755173443225,-485.0,0.00016712,2]
[379167002,1755173443234,-1374.93,0.00016712,2]
[379167004,1755173443244,-5332.7,0.00016712,2]
[379167006,1755173443253,-460.0,0.00016712,2]
[379167008,1755173443263,-906.21,0.00016712,2]
[379167010,1755173443272,-460.0,0.00016712,2]
[379167012,1755173443281,-460.0,0.00016712,2]
[379167014,1755173443292,-598.12,0.00016712,2]
[379167016,1755173443301,-966.29,0.00016712,2]
[379167018,1755173443311,-912.08,0.00016712,2]
[379167020,1755173443320,-1753.28,0.00016712,2]
[379167022,1755173443329,-531.73,0.00016712,2]
[379167024,1755173443339,-1165.7,0.00016712,2]
[379167026,1755173443350,-584.07,0.00016712,2]
[379167028,1755173443359,-542.11,0.00016712,2]
[379167030,1755173443369,-460.0,0.00016712,2]
[379167032,1755173443378,-460.0,0.00016712,2]
[379167034,1755173443387,-460.0,0.00016712,2]
[379167036,1755173443396,-508.42,0.00016712,2]
[379167038,1755173443405,-873.96,0.00016712,2]
[379167040,1755173443415,-2259.45,0.00016712,2]
[379167042,1755173443425,-460.0,0.00016712,2]
[379167044,1755173443434,-460.0,0.00016712,2]
[379167046,1755173443443,-965.29,0.00016712,2]
[379167048,1755173443453,-802.39,0.00016712,2]
[379167050,1755173443463,-1231.01,0.00016712,2]
[379167052,1755173443472,-500.0,0.00016712,2]
[379167054,1755173443481,-151.0,0.00016712,2]
[379167056,1755173443491,-500.0,0.00016712,2]
[379167058,1755173443501,-668.33,0.00016712,2]
[379167060,1755173443511,-460.0,0.00016712,2]
[379167062,1755173443521,-3475.27,0.00016712,2]
[379167064,1755173443530,-13967.02,0.00016712,2]
[379167066,1755173443540,-1204.11,0.00016712,2]
[379167068,1755173443550,-463.7,0.00016712,2]
[379167070,1755173443560,-2110.81,0.00016712,2]
[379167072,1755173443569,-948.94,0.00016712,2]
[379167074,1755173443580,-460.0,0.00016712,2]
[379167076,1755173443590,-10303.06,0.00016712,2]
[379167078,1755173443600,-460.0,0.00016712,2]
[379167080,1755173443609,-460.0,0.00016712,2]
[379167082,1755173443619,-2234.48,0.00016712,2]
[379167084,1755173443629,-3603.74,0.00016712,2]
[379167086,1755173443638,-650.55,0.00016712,2]
[379167088,1755173443648,-594.01,0.00016712,2]
[379167090,1755173443657,-1578.8,0.00016712,2]
[379167092,1755173443667,-1187.02,0.00016712,2]
[379167094,1755173443677,-896.46,0.00016712,2]
[379167096,1755173443686,-460.0,0.00016712,2]
[379167098,1755173443696,-460.0,0.00016712,2]
[379167100,1755173443706,-460.0,0.00016712,2]
[379167102,1755173443716,-575.26413,0.00016712,2]
[379167104,1755173443725,-460.0,0.00016712,2]
[379167106,1755173443735,-460.0,0.00016712,2]
[379167108,1755173443745,-460.0,0.00016712,2]
[379167110,1755173443755,-2265.14,0.00016712,2]
[379167112,1755173443764,-1842.329479,0.00016712,2]
[379167114,1755173443774,-1842.329479,0.00016712,2]
[379167116,1755173443784,-460.0,0.00016712,2]
[379167118,1755173443793,-460.0,0.00016712,2]
[379167120,1755173443802,-1367.49,0.00016712,2]
[379167122,1755173443812,-1137.36,0.00016712,2]
[379167124,1755173443820,-460.0,0.00016712,2]
[379167126,1755173443830,-487.15,0.00016712,2]
[379167127,1755173443839,-8931.66,0.00016712,2]
[379167128,1755173443849,-162.09070891,0.00016712,2]
[379167129,1755173443859,-500.0,0.00016712,2]
[379167131,1755173443869,-151.0,0.00016712,2]
[379167132,1755173443878,-1136.05,0.00016712,2]
[379167133,1755173443887,-640.56,0.00016712,2]
[379167134,1755173443896,-460.0,0.00016712,2]
[379167135,1755173443905,-460.0,0.00016712,2]
[379167136,1755173443914,-705.25,0.00016712,2]
[379167137,1755173443924,-460.0,0.00016712,2]
[379167138,1755173443933,-1263.37,0.00016712,2]
[379167140,1755173443943,-262.92559148,0.00016712,2]
[379167142,1755173443952,-151.0,0.00016712,2]
[379167144,1755173443962,-151.0,0.00016712,2]
[379167146,1755173443971,-460.0,0.00016712,2]
[379167148,1755173443981,-151.0,0.00016712,2]
[379167150,1755173443990,-508.779493,0.00016712,2]
[379167152,1755173444000,-225.67906981,0.00016712,2]
[379167154,1755173444009,-151.0,0.00016712,2]
[379167156,1755173444020,-612.8,0.00016712,2]
[379167158,1755173444031,-2176.31,0.00016712,2]
[379167160,1755173444040,-716.96,0.00016712,2]
[379167162,1755173444049,-508.779493,0.00016712,2]
[379167164,1755173444059,-460.0,0.00016712,2]
[379167166,1755173444068,-265.96506597,0.00016712,2]
[379167168,1755173444078,-151.0,0.00016712,2]
[379167170,1755173444088,-460.0,0.00016712,2]
[379167172,1755173444100,-506.25103804,0.00016712,2]
[379167174,1755173444109,-168.0,0.00016728,2]
[379167176,1755173444119,-168.0,0.00016738,2]
[379167178,1755173444128,-168.0,0.00016759,2]
[379167180,1755173444137,-200.0,0.00016766,2]
[379167182,1755173444146,-200.0,0.00016766,2]
[379167184,1755173444156,-200.0,0.00016766,2]
[379167187,1755173444168,-200.0,0.00016766,2]
[379167189,1755173444177,-200.0,0.00016766,2]
[379167191,1755173444187,-200.0,0.00016766,2]
[379167193,1755173444196,-575.26413,0.00016766,2]
[379167195,1755173444205,-575.26413,0.00016766,2]
[379167197,1755173444215,-1842.329479,0.00016766,2]
[379167199,1755173444225,-1842.329479,0.00016766,2]
[379167201,1755173444234,-501.56046148,0.00016773,2]
[379167203,1755173444244,-500.0,0.00016773,2]
[379167205,1755173444253,-500.0,0.00016773,2]
[379167207,1755173444262,-500.0,0.00016773,2]
[379167209,1755173444271,-431.70686784,0.00016773,2]
[379167211,1755173444281,-500.0,0.00016773,2]
[379167213,1755173444290,-397.726348,0.00016773,2]
[379167214,1755173444299,-397.726348,0.00016773,2]
[379167216,1755173444309,-508.779493,0.00016773,2]
[379167218,1755173444318,-508.779493,0.00016773,2]
[379167221,1755173444328,-151.0,0.000168,2]
[379167223,1755173444337,-151.0,0.000168,2]
[379167225,1755173444348,-151.0,0.000168,2]
[379167227,1755173444357,-168.0,0.0001681,2]
[379167229,1755173444366,-1829.0,0.0001684,2]
[379167230,1755173444375,-168.0,0.00016845,2]
[379167233,1755173444385,-168.0,0.00016856,2]
[379167234,1755173444395,-168.0,0.00016866,2]
[379167236,1755173444404,-151.0,0.00016885,2]
[379167238,1755173444414,-205.226161,0.00016885,2]
[379167240,1755173444423,-151.0,0.00016885,2]
[379167242,1755173444432,-151.0,0.00016885,2]
[379167244,1755173444442,-151.0,0.00016885,2]
[379167246,1755173444452,-151.0,0.00016885,2]
[379167248,1755173444461,-775.8,0.00016885,2]
[379167250,1755173444471,-460.0,0.00016885,2]
[379167252,1755173444480,-460.0,0.00016885,2]
[379167254,1755173444489,-378.59262677,0.00016885,2]
[379167256,1755173444500,-1054.39,0.00016885,2]
[379167258,1755173444510,-670.3,0.00016885,2]
[379167260,1755173444520,-2115.76,0.00016885,2]
[379167262,1755173444529,-460.0,0.00016885,2]
[379167264,1755173444539,-1723.25,0.00016885,2]
[379167266,1755173444549,-460.0,0.00016885,2]
[379167268,1755173444559,-460.0,0.00016885,2]
[379167270,1755173444569,-715.97,0.00016885,2]
[379167272,1755173444578,-460.0,0.00016885,2]
[379167274,1755173444588,-460.0,0.00016885,2]
[379167276,1755173444600,-777.37,0.00016885,2]
[379167278,1755173444609,-3550.32,0.00016885,2]
[379167280,1755173444619,-461.85,0.00016885,2]
[379167282,1755173444628,-704.78,0.00016885,2]
[379167284,1755173444637,-460.0,0.00016885,2]
[379167286,1755173444647,-460.0,0.00016885,2]
[379167288,1755173444656,-460.0,0.00016885,2]
[379167290,1755173444666,-460.0,0.00016885,2]
[379167292,1755173444675,-1019.33,0.00016885,2]
[379167294,1755173444685,-151.0,0.00016885,2]
[379167296,1755173444695,-1293.96,0.00016885,2]
[379167298,1755173444704,-579.703095,0.00016885,2]
[379167300,1755173444713,-977.71,0.00016885,2]
[379167302,1755173444723,-579.703095,0.00016885,2]
[379167304,1755173444732,-460.0,0.00016885,2]
[379167306,1755173444742,-151.0,0.00016885,2]
[379167308,1755173444752,-397.726348,0.00016885,2]
[379167310,1755173444762,-397.726348,0.00016885,2]
[379167312,1755173444771,-460.0,0.00016885,2]
[379167314,1755173444780,-460.0,0.00016885,2]
[379167316,1755173444789,-2321.14,0.00016885,2]
[379167318,1755173444799,-1675.12,0.00016885,2]
[379167320,1755173444809,-1471.32,0.00016885,2]
[379167322,1755173444818,-957.1,0.00016885,2]
[379167324,1755173444827,-1746.24,0.00016885,2]
[379167326,1755173444836,-1464.09,0.00016885,2]
[379167328,1755173444846,-469.32803731,0.00016885,2]
[379167330,1755173444856,-1415.29,0.00016885,2]
[379167332,1755173444865,-2917.14,0.00016885,2]
[379167334,1755173444874,-1781.5,0.00016885,2]
[379167336,1755173444884,-1084.86,0.00016885,2]
[379167338,1755173444897,-4043.71,0.00016885,2]
[379167340,1755173444906,-575.26413,0.00016885,2]
[379167342,1755173444915,-575.26413,0.00016885,2]
[379167344,1755173444924,-1842.329479,0.00016885,2]
[379167346,1755173444934,-1842.329479,0.00016885,2]
[379167348,1755173444943,-551.13,0.00016885,2]
[379167350,1755173444954,-1126.18,0.00016885,2]
[379167352,1755173444963,-1465.34,0.00016885,2]
[379167376,1755173445184,-517.48,0.00016885,2]
[379167378,1755173445196,-460.0,0.00016885,2]
[379167380,1755173445205,-259.22415168,0.00016885,2]
[379167382,1755173445214,-508.779493,0.00016885,2]
[379167384,1755173445224,-508.779493,0.00016885,2]
[379167386,1755173445234,-151.0,0.000169,2]
[379167388,1755173445243,-151.0,0.000169,2]
[379167390,1755173445253,-151.0,0.000169,2]
[379167392,1755173445262,-151.0,0.000169,2]
[379167395,1755173445272,-500.0,0.00016973,2]
[379167397,1755173445283,-500.0,0.00016973,2]
[379167399,1755173445292,-500.0,0.00016973,2]
[379167401,1755173445303,-500.0,0.00016973,2]
[379167403,1755173445312,-500.0,0.00016973,2]
[379167405,1755173445321,-500.0,0.00016973,2]
[379167407,1755173445331,-220.14342274,0.00016973,2]
[379167409,1755173445341,-380.96139338,0.00016973,2]
[379167411,1755173445352,-500.0,0.00016973,2]
[379167413,1755173445361,-500.0,0.00016973,2]
[379167415,1755173445371,-500.0,0.00016973,2]
[379167417,1755173445383,-500.0,0.00016973,2]
[379167419,1755173445392,-500.0,0.00016973,2]
[379167421,1755173445402,-500.0,0.00016973,2]
[379167423,1755173445412,-500.0,0.00016973,2]
[379167425,1755173445422,-500.0,0.00016973,2]
[379167427,1755173445432,-330.148708,0.00016973,2]
[379167429,1755173445442,-158.55028922,0.00016973,2]
[379167431,1755173445452,-500.0,0.00016973,2]
[379167433,1755173445462,-400.32983738,0.00016973,2]
[379167435,1755173445472,-329.40858274,0.00016973,2]
[379167437,1755173445482,-340.27033454,0.00016973,2]
[379167439,1755173445492,-415.19322847,0.00016973,2]
[379167441,1755173445504,-500.0,0.00016973,2]
[379167443,1755173445514,-500.0,0.00016973,2]
[379167445,1755173445524,-168.55495329,0.00016973,2]
[379167446,1755173445533,-500.0,0.00016973,2]
[379167447,1755173445543,-500.0,0.00016973,2]
[379167448,1755173445552,-500.0,0.00016973,2]
[379167449,1755173445561,-500.0,0.00016973,2]
[379167450,1755173445571,-500.0,0.00016973,2]
[379167451,1755173445581,-500.0,0.00016973,2]
[379167452,1755173445591,-500.0,0.00016973,2]
[379167453,1755173445604,-500.0,0.00016973,2]
[379167454,1755173445614,-500.0,0.00016973,2]
[379167455,1755173445623,-1272.193631,0.00016984,2]
[379167456,1755173445633,-1272.193631,0.00016984,2]
[379167457,1755173445642,-460.0,0.00016984,2]
[379167458,1755173445652,-487.53304859,0.00016984,2]
[379167459,1755173445661,-460.0,0.00016984,2]
[379167460,1755173445671,-460.0,0.00016984,2]
[379167461,1755173445680,-460.0,0.00016984,2]
[379167462,1755173445689,-151.0,0.00016984,2]
[379167463,1755173445699,-460.0,0.00016984,2]
[379167464,1755173445708,-1344.79,0.00016984,2]
[379167465,1755173445718,-460.0,0.00016984,2]
[379167466,1755173445727,-543.24,0.00016984,2]
[379167467,1755173445736,-460.0,0.00016984,2]
[379167468,1755173445746,-778.07,0.00016984,2]
[379167469,1755173445755,-460.0,0.00016984,2]
[379167470,1755173445765,-460.0,0.00016984,2]
[379167471,1755173445774,-1152.21,0.00016984,2]
[379167472,1755173445783,-151.0,0.00016984,2]
[379167473,1755173445792,-460.0,0.00016984,2]
[379167474,1755173445802,-540.51,0.00016984,2]
[379167475,1755173445811,-1001.97,0.00016984,2]
[379167476,1755173445820,-460.0,0.00016984,2]
[379167477,1755173445830,-460.0,0.00016984,2]
[379167478,1755173445839,-460.0,0.00016984,2]
[379167479,1755173445850,-541.83,0.00016984,2]
[379167480,1755173445859,-248.725004,0.00016984,2]
[379167481,1755173445868,-248.725004,0.00016984,2]
[379167482,1755173445877,-460.0,0.00016984,2]
[379167483,1755173445886,-460.0,0.00016984,2]
[379167484,1755173445896,-157.092714,0.00016984,2]
[379167485,1755173445906,-550.557668,0.00016984,2]
[379167486,1755173445916,-157.092714,0.00016984,2]
[379167487,1755173445926,-550.557668,0.00016984,2]
[379167488,1755173445935,-514.39,0.00016984,2]
[379167489,1755173445945,-460.0,0.00016984,2]
[379167490,1755173445954,-129.33964295,0.00016984,2]
[379167491,1755173446770,-0.00451703,0.00016984,2]
[379167492,1755173447104,-181.32846045,0.00016573,2]
[379167493,1755173447114,-500.0,0.00016973,2]
[379167494,1755173447124,-330.65584002,0.00016984,2]
[379167495,1755173447133,-151.0,0.00016984,2]
[379167496,1755173447143,-460.0,0.00016984,2]
[379167497,1755173447154,-151.0,0.00016984,2]
[379167498,1755173447173,-549.5,0.00016984,2]
[379167499,1755173447193,-460.0,0.00016984,2]
[379167500,1755173447203,-460.0,0.00016984,2]
[379167501,1755173447213,-661.25,0.00016984,2]
[379167502,1755173447223,-460.0,0.00016984,2]
[379167503,1755173447233,-460.0,0.00016984,2]
[379167504,1755173447242,-460.0,0.00016984,2]
[379167505,1755173447252,-460.0,0.00016984,2]
[379167506,1755173447261,-460.0,0.00016984,2]
[379167507,1755173447271,-151.0,0.00016984,2]
[379167508,1755173447281,-579.703095,0.00016984,2]
[379167509,1755173447291,-579.703095,0.00016984,2]
[379167510,1755173447300,-460.0,0.00016984,2]
[379167511,1755173447310,-460.0,0.00016984,2]